bitfinex/quotes_ETHUSD_20250815
["timestamp","ask_amount","ask_price","bid_price","bid_amount"]
[1755270717303,1e-08,4495.4,4495.3,2.22454563]
[1755270717566,1e-08,4495.4,4495.3,5.67544563]
[1755270717718,1e-08,4495.4,4495.3,5.22454563]
[1755270717917,1e-08,4495.4,4495.3,2.22454563]
[1755270718167,0.71320001,4495.4,4495.3,2.22454563]
[1755270718451,1e-08,4495.4,4495.3,2.22454563]
[1755270718668,1e-08,4495.4,4495.3,5.67544563]
[1755270718833,1e-08,4495.4,4495.3,5.22454563]
[1755270719435,1.14660001,4495.4,4493.1,4.041]
[1755270719636,1.14660001,4495.4,4493.1,4.49019]
[1755270719846,1.14660001,4495.4,4495.0,2.22465242]
[1755270720006,0.1112,4495.1,4495.0,2.22465242]
[1755270720209,1.2578,4495.1,4494.4,2.22497678]
[1755270720423,0.1112,4494.6,4492.5,5.345]
[1755270720664,0.1112,4494.0,4493.2,0.1112]
[1755270720948,0.1112,4494.0,4492.2,2.22608076]
[1755270720949,1.1466,4494.5,4493.9,2.33640534]
[1755270721246,1.1466,4494.5,4493.1,0.16733977]
[1755270721469,0.1112,4494.0,4493.9,2.22523865]
[1755270721751,0.7132,4495.2,4493.8,2.22528817]
[1755270721920,0.1112,4494.7,4494.4,2.22496873]
[1755270722110,0.7132,4494.6,4494.5,2.22494159]
[1755270722507,0.7132,4494.6,4491.8,0.4519]
[1755270722508,0.55,4494.5,4491.8,0.4519]
[1755270722707,0.1112,4493.6,4493.1,0.1112]
[1755270722940,1.1466,4494.4,4492.4,2.22598165]
[1755270723139,0.1112,4494.2,4493.6,2.22538721]
[1755270723347,0.1112,4494.2,4493.5,0.1112]
[1755270723844,0.1112,4494.2,4494.1,2.22513962]
[1755270724010,0.4334,4494.8,4494.7,2.22484259]
[1755270724210,1.2578,4494.8,4494.6,2.22488167]
[1755270724543,0.1112,4494.4,4493.8,0.1112]
[1755270724731,0.23698,4494.4,4493.8,0.1112]
[1755270725047,0.7132,4494.3,4494.2,2.22509011]
[1755270725247,0.1112,4494.4,4494.3,2.2250406]
[1755270725543,0.1112,4494.9,4494.2,0.1112]
[1755270725743,0.11466,4495.2,4494.9,2.22474359]
[1755270725949,0.1112,4495.2,4495.1,2.22464461]
[1755270726131,1.1308,4495.1,4494.7,0.1112]
[1755270726332,1.1308,4495.0,4492.9,2.22573393]
[1755270726514,0.1112,4494.7,4494.0,0.1112]
[1755270726717,0.1242,4494.7,4494.4,2.2249911]
[1755270726913,1.1308,4495.0,4494.4,2.2249911]
[1755270726914,1e-08,4495.4,4494.6,2.22489209]
[1755270727150,0.57823162,4496.9,4494.9,2.22474359]
[1755270727459,0.1112,4496.6,4495.5,5.22442476]
[1755270727632,0.1112,4497.1,4496.3,2.22404826]
[1755270727831,0.4558,4497.2,4496.3,2.22401622]
[1755270727832,0.1112,4496.7,4496.3,2.22401622]
[1755270728053,0.4558,4496.6,4494.6,2.22489209]
[1755270728346,0.1112,4496.0,4495.9,2.22424875]
[1755270728546,0.1112,4496.4,4495.8,0.1112]
[1755270728765,0.1112,4496.1,4496.0,2.22416538]
[1755270729065,0.7862,4496.1,4494.0,2.22518914]
[1755270729266,0.7862,4496.1,4495.7,2.22432072]
[1755270729422,0.7862,4496.1,4495.7,2.22432321]
[1755270729628,0.7862,4496.1,4496.0,2.22419928]
[1755270729926,0.46504046,4497.3,4496.4,2.22396162]
[1755270730235,0.1112,4496.8,4496.2,0.1112]
[1755270730458,0.675,4496.7,4494.5,3.0]
[1755270730626,0.33546017,4496.6,4494.6,2.22489209]
[1755270730829,0.55,4496.4,4493.7,3.0]
[1755270731029,1.1308,4496.3,4492.8,0.938444]
[1755270731337,0.1112,4494.9,4494.2,0.1112]
[1755270731654,0.46504838,4496.4,4494.6,2.22489209]
[1755270731863,0.1112,4495.8,4495.3,2.22452131]
[1755270732028,0.1112,4495.8,4495.2,0.1112]
[1755270732029,0.7862,4495.8,4495.2,0.1112]
[1755270732228,0.7862,4495.8,4495.7,2.22434771]
[1755270732430,0.675,4496.8,4495.5,2.22443793]
[1755270732652,0.1112,4496.2,4495.6,0.1112]
[1755270733137,0.1112,4496.2,4496.1,2.22414981]
[1755270733438,0.1112,4496.5,4495.8,2.33545428]
[1755270733637,0.1112,4496.5,4496.4,2.22400142]
[1755270734443,0.1112,4496.5,4496.2,2.22409244]
[1755270734444,0.1112,4496.5,4495.8,0.1112]
[1755270734669,0.7862,4496.5,4495.8,0.1112]
[1755270734844,0.7862,4496.5,4496.0,2.22416605]
[1755270735144,1.1308,4496.4,4495.8,0.1112]
[1755270735344,1.1308,4496.4,4495.4,0.16872189]
[1755270735345,0.1242,4496.3,4495.4,0.16872189]
[1755270735633,0.2354,4496.3,4495.9,2.22424875]
[1755270735837,0.2354,4496.3,4495.8,2.22429173]
[1755270736048,0.1112,4496.3,4496.2,2.22410035]
[1755270736364,0.1112,4496.3,4495.7,0.1112]
[1755270736365,0.675,4496.3,4495.7,0.1112]
[1755270736572,0.1112,4496.5,4496.2,2.22410035]
[1755270736755,0.1112,4496.5,4496.4,2.22400142]
[1755270737237,0.1112,4496.5,4495.2,2.22455835]
[1755270737238,0.1112,4496.5,4496.0,0.1112]
[1755270737434,1.1308,4496.4,4495.7,2.22430273]
[1755270737736,0.1112,4496.3,4494.0,3.0]
[1755270737953,1.1308,4496.4,4495.0,0.668138]
[1755270738184,0.1112,4495.8,4495.7,2.22434771]
[1755270738382,0.002,4496.7,4495.0,0.16650175]
[1755270738678,2.22585627,4496.7,4495.1,2.22464461]
[1755270738888,0.002,4496.7,4494.9,0.668138]
[1755270739093,0.002,4496.7,4494.7,0.4538]
[1755270739377,0.002,4496.7,4496.6,2.2239025]
[1755270739535,0.002,4496.7,4495.5,2.22443907]
[1755270739736,0.677,4496.7,4496.6,2.2239025]
[1755270739989,0.4721,4496.7,4496.6,2.2239025]
[1755270740157,0.4721,4496.7,4495.5,2.22444666]
[1755270740468,0.002,4496.7,4496.0,2.22416199]
[1755270740673,0.002,4496.7,4496.6,2.2239025]
[1755270741147,0.002,4496.7,4494.9,2.39128077]
[1755270741471,0.002,4496.7,4495.9,2.22424546]
[1755270741673,0.002,4496.7,4494.9,3.16656848]
[1755270741838,0.677,4496.7,4494.9,0.16656848]
[1755270742039,0.677,4496.7,4496.1,2.22414706]
[1755270742251,0.677,4496.7,4495.0,2.2246941]
[1755270742570,0.677,4496.7,4496.2,2.22407038]
[1755270742769,0.677,4496.7,4495.1,3.0]
[1755270743074,0.677,4496.7,4496.3,2.22404814]
[1755270743373,0.002,4496.7,4496.3,2.22403137]
[1755270743569,0.002,4496.7,4495.1,0.4538]
[1755270743795,0.002,4496.7,4495.3,2.22454563]
[1755270743996,0.002,4496.7,4495.1,0.4538]
[1755270744186,0.002,4496.7,4496.2,2.22409729]
[1755270744499,0.55,4496.5,4494.7,0.668115]
[1755270744799,0.57823162,4496.2,4494.4,2.22494168]
[1755270745014,0.57823162,4496.2,4493.8,2.22526195]
[1755270745015,3.82001908,4496.1,4495.1,2.22460779]
[1755270745202,0.4650682,4496.3,4496.0,2.22419928]
[1755270745384,0.79301844,4496.4,4494.4,0.62394407]
[1755270745385,1.1308,4496.2,4494.5,3.0]
[1755270745562,0.13455868,4496.1,4495.6,2.22435459]
[1755270745763,1.5958682,4496.0,4494.4,0.62394407]
[1755270746106,2.77430648,4495.8,4494.5,2.22494159]
[1755270746274,2.17409982,4495.7,4494.6,2.22489209]
[1755270746597,2.17409982,4495.7,4493.7,0.668351]
[1755270746598,0.55,4495.4,4493.7,0.668351]
[1755270746771,0.57823162,4495.2,4493.7,0.668351]
[1755270746972,4.4880682,4495.1,4493.7,3.06202135]
[1755270747172,1.1400682,4495.0,4494.3,2.22503997]
[1755270747378,4.4788,4495.1,4493.7,0.83671958]
[1755270747379,0.4650682,4495.1,4493.7,0.16836858]
[1755270747564,0.4650682,4495.1,4493.2,0.4538]
[1755270747565,1.1400682,4495.0,4493.9,2.22522199]
[1755270747760,0.57412998,4494.9,4494.2,0.001]
[1755270747999,0.4650682,4494.8,4494.2,0.001]
[1755270748220,0.55,4494.8,4494.2,0.001]
[1755270748379,0.55,4494.6,4494.2,0.001]
[1755270748879,0.1112,4494.4,4494.2,0.001]
[1755270749206,4.018,4494.3,4494.2,0.001]
[1755270749570,4.693,4494.3,4494.2,0.001]
[1755270750082,4.018,4494.3,4494.2,0.001]
[1755270750493,5.1488,4494.3,4494.2,0.001]
[1755270751076,7.9238406,4494.3,4494.2,0.001]
[1755270751307,11.99637875,4494.3,4494.2,0.001]
[1755270751869,2.75333815,4494.3,4494.2,0.001]
[1755270752088,5.6858,4494.3,4494.2,0.001]
[1755270752376,7.9108406,4494.3,4494.2,0.0018]
[1755270752581,10.9108406,4494.3,4494.2,0.0018]
[1755270753238,10.9108406,4494.3,4493.7,0.001]
[1755270753239,2.77528817,4493.8,4493.7,0.001]
[1755270753429,0.55,4493.7,4493.1,0.001]
[1755270753573,0.6612,4493.2,4493.1,0.001]
[1755270753777,11.23078532,4493.2,4493.1,0.001]
[1755270753977,12.36158532,4493.2,4493.1,0.001]
[1755270754227,16.36058532,4493.2,4493.1,0.001]
[1755270754380,18.2191951,4493.2,4493.1,0.001]
[1755270754918,2.7760312,4492.3,4491.0,0.001]
[1755270755119,0.55,4491.9,4491.0,0.001]
[1755270755416,0.55,4491.4,4491.0,0.001]
[1755270755614,4.1308,4492.2,4491.0,0.001]
[1755270755615,3.55,4491.2,4491.0,0.001]
[1755270755793,2.77662599,4491.1,4491.0,0.001]
[1755270755991,1.6808,4491.1,4491.0,0.001]
[1755270756191,3.993,4491.1,4491.0,0.001]
[1755270756895,0.4591,4491.8,4491.0,0.001]
[1755270757090,4.544,4491.7,4491.0,0.001]
[1755270757602,3.991,4491.6,4491.0,0.001]
[1755270757804,3.991,4491.6,4491.1,0.22276862]
[1755270758120,3.991,4491.6,4491.0,0.001]
[1755270758321,0.55,4491.4,4491.0,0.001]
[1755270758683,0.55,4491.2,4491.0,0.001]
[1755270759118,1.2093,4491.1,4491.0,0.001]
[1755270759316,0.6593,4491.7,4491.0,0.001]
[1755270759516,3.991,4491.6,4491.0,0.001]
[1755270759705,3.991,4491.5,4491.1,2.22662044]
[1755270759884,3.991,4491.5,4491.4,2.22647726]
[1755270760401,0.4591,4493.4,4491.4,0.4626]
[1755270760594,3.992,4493.1,4492.4,2.22594746]
[1755270760798,3.992,4493.1,4491.6,2.22637812]
[1755270761001,5.8051,4494.0,4492.0,2.22617987]
[1755270761227,3.99,4493.9,4493.3,2.22551706]
[1755270761439,3.99,4493.9,4492.1,0.4626]
[1755270761599,1.1184,4493.8,4491.7,0.56889781]
[1755270761803,0.55,4493.5,4492.1,2.22609006]
[1755270762013,0.55,4492.5,4490.5,0.001]
[1755270762185,5.22548626,4493.4,4490.5,0.001]
[1755270762186,3.55,4492.3,4490.5,0.001]
[1755270762386,0.55,4491.4,4490.5,0.001]
[1755270762628,0.55,4491.2,4490.5,2.22792061]
[1755270762825,4.538,4491.1,4490.5,0.001]
[1755270763182,5.1973,4491.1,4490.5,2.22792147]
[1755270763386,5.346,4491.9,4490.5,0.001]
[1755270763623,0.55,4491.7,4490.5,0.001]
[1755270763795,3.986,4491.8,4490.5,0.001]
[1755270763990,0.55,4491.7,4490.5,0.001]
[1755270764490,0.55,4491.5,4490.5,0.001]
[1755270764682,0.55,4491.1,4490.5,0.001]
[1755270764882,4.6462,4491.1,4490.5,0.001]
[1755270765124,5.7646,4491.1,4490.5,0.001]
[1755270765486,5.3055,4491.1,4490.5,0.001]
[1755270765830,5.7646,4491.1,4490.5,0.001]
[1755270766189,4.6472,4491.1,4490.5,0.001]
[1755270766743,0.1112,4491.1,4490.9,2.22671701]
[1755270766896,4.0972,4491.1,4490.5,0.001]
[1755270767292,11.40194599,4491.1,4490.5,0.001]
[1755270767839,5.77687391,4490.6,4490.5,0.001]
[1755270768039,9.87407391,4490.6,4490.5,0.001]
[1755270768332,3.1112,4490.6,4490.5,0.001]
[1755270768506,7.0972,4490.6,4490.5,0.001]
[1755270769205,6.0053,4491.9,4490.5,0.001]
[1755270769409,3.986,4491.8,4490.5,0.001]
[1755270769609,3.986,4491.8,4491.0,2.22666851]
[1755270769809,6.0053,4491.9,4490.5,0.4636]
[1755270769810,3.986,4491.7,4490.5,0.4636]
[1755270770035,5.3452,4491.9,4490.6,2.22687391]
[1755270770196,3.986,4491.8,4491.6,2.22636333]
[1755270770415,3.986,4491.8,4491.7,2.22632856]
[1755270770931,3.986,4491.8,4491.5,2.22642058]
[1755270771131,3.986,4491.8,4489.3,2.22751149]
[1755270771132,3.0,4491.7,4489.3,2.22751149]
[1755270771318,3.0,4491.7,4485.2,2.7817159]
[1755270771319,0.55,4491.6,4490.5,0.001]
[1755270771522,0.55,4491.6,4490.7,2.22678153]
[1755270771828,0.55,4491.6,4490.8,2.22675652]
[1755270772034,3.986,4491.5,4490.5,0.001]
[1755270772205,3.986,4491.4,4490.5,0.4636]
[1755270772405,3.986,4491.4,4491.1,2.22658359]
[1755270772634,3.986,4491.4,4490.5,0.4636]
[1755270772635,3.986,4491.4,4490.5,0.001]
[1755270772935,3.55,4491.3,4490.5,0.001]
[1755270773292,3.55,4491.3,4490.5,2.22791914]
[1755270773499,3.55,4491.6,4490.7,2.22679689]
[1755270773706,3.55,4491.4,4490.7,2.22679689]
[1755270773908,1.11215299,4491.6,4490.5,0.001]
[1755270774134,3.985,4491.5,4490.5,0.001]
[1755270774335,3.985,4491.4,4490.5,0.001]
[1755270774633,3.985,4491.3,4491.2,2.22657641]
[1755270774796,3.985,4491.3,4491.2,2.67189898]
[1755270775203,3.985,4491.3,4491.2,2.22657641]
[1755270775398,0.6593,4492.7,4490.6,3.0]
[1755270775602,3.0,4492.5,4491.9,2.22622387]
[1755270775798,3.986,4492.6,4492.1,2.22612692]
[1755270776134,0.46453,4492.5,4491.2,0.4626]
[1755270776302,0.46453,4492.5,4491.2,2.68915635]
[1755270776499,3.985,4492.4,4490.8,2.68937473]
[1755270776703,3.985,4492.4,4492.1,2.22609857]
[1755270776899,3.985,4492.4,4491.1,2.22662599]
[1755270777232,3.985,4492.4,4491.3,0.4626]
[1755270777435,3.985,4492.4,4491.9,2.22621231]
[1755270777634,3.985,4492.4,4492.0,2.22616494]
[1755270777933,3.985,4492.4,4491.9,2.22621114]
[1755270778131,3.985,4492.4,4490.5,0.001]
[1755270778338,3.985,4492.4,4492.1,2.22609391]
[1755270778543,3.0,4493.2,4491.2,0.4626]
[1755270778701,0.6593,4493.6,4491.4,2.22647726]
[1755270778902,3.985,4493.1,4491.5,4.06103773]
[1755270779116,3.985,4493.1,4491.6,0.4626]
[1755270779314,4.0962,4493.1,4492.5,0.1112]
[1755270779535,4.0962,4493.1,4492.5,2.33713121]
[1755270779714,4.0962,4493.1,4492.8,2.22573938]
[1755270780111,0.002,4493.3,4492.9,0.1112]
[1755270780311,2.22565064,4493.1,4491.3,0.32953]
[1755270780641,2.77593344,4492.5,4491.0,0.1112]
[1755270780841,0.1112,4491.6,4491.2,2.22656426]
[1755270781041,5.6524,4491.5,4490.6,2.22683532]
[1755270781252,0.1112,4491.1,4490.3,0.1112]
[1755270781452,3.984,4492.4,4490.6,0.4626]
[1755270781622,3.984,4492.4,4492.3,2.2260312]
[1755270781818,0.6593,4493.5,4491.5,0.4626]
[1755270782117,3.984,4493.0,4492.9,2.22573393]
[1755270783456,4.6433,4493.0,4492.6,0.1112]
[1755270783641,0.1112,4492.8,4491.9,0.1112]
[1755270783841,0.55,4492.6,4491.9,0.1112]
[1755270784255,0.002,4492.2,4492.1,2.22613031]
[1755270784751,0.002,4492.2,4492.1,2.33733031]
[1755270788155,0.002,4492.2,4492.1,2.80253031]
[1755270788350,0.002,4492.2,4492.1,2.33733031]
[1755270789631,0.002,4492.2,4492.1,3.25888133]
[1755270789960,0.002,4492.2,4492.1,2.33733031]
[1755270791458,0.002,4492.2,4492.1,0.1112]
[1755270791659,1.1833,4492.2,4492.0,2.22616935]
[1755270791956,0.71,4492.1,4491.9,2.2262207]
[1755270792163,3.981,4492.0,4491.0,0.669734]
[1755270792330,0.1112,4491.9,4491.3,0.1112]
[1755270792534,0.1112,4491.9,4491.8,2.22627899]
[1755270792779,0.1112,4491.9,4491.0,0.001]
[1755270792780,3.981,4492.1,4491.0,0.001]
[1755270792929,3.981,4492.1,4491.6,0.1112]
[1755270793134,1.1813,4492.0,4491.0,0.001]
[1755270793372,0.1112,4491.9,4491.7,2.2263264]
[1755270793769,0.1112,4491.9,4491.2,0.1112]
[1755270793956,0.71,4491.8,4491.7,2.22629256]
[1755270794543,0.1112,4491.9,4491.7,2.22629256]
[1755270794544,0.1112,4491.9,4491.8,2.22627899]
[1755270795269,0.1112,4491.9,4491.0,0.001]
[1755270795270,0.55,4491.8,4491.0,0.001]
[1755270795590,1.59072,4491.9,4490.2,0.001]
[1755270795737,0.55,4491.6,4491.1,2.22661369]
[1755270795937,3.98,4491.5,4491.3,2.22651129]
[1755270796245,1.7313,4491.4,4490.2,2.2280268]
[1755270796446,1.7313,4491.4,4490.7,2.22682432]
[1755270796638,1.7313,4491.4,4490.9,2.22670939]
[1755270796837,1.1813,4491.3,4490.8,2.22676645]
[1755270797037,1.1813,4491.3,4490.5,0.001]
[1755270797038,2.77658814,4491.2,4490.5,0.001]
[1755270797250,0.55,4491.0,4490.5,0.001]
[1755270797470,3.98,4490.9,4490.5,0.001]
[1755270797643,5.1613,4490.9,4490.5,0.001]
[1755270797850,4.4513,4490.9,4490.5,0.001]
[1755270798159,1.1813,4490.8,4490.5,0.001]
[1755270798349,0.79380264,4490.7,4490.5,0.001]
[1755270798773,3.95817391,4490.6,4490.5,0.001]
[1755270798974,6.95817391,4490.6,4490.5,0.001]
[1755270799162,5.19664209,4490.6,4490.5,0.001]
[1755270799356,10.93817391,4490.6,4490.5,0.001]
[1755270799557,12.33405008,4490.6,4490.5,0.001]
[1755270800943,8.81884247,4490.6,4490.5,0.001]
[1755270801371,8.35405008,4490.6,4490.5,0.001]
[1755270801544,12.33305008,4490.6,4490.5,0.001]
[1755270802273,12.33305008,4490.6,4490.5,0.0018]
[1755270802471,16.33305008,4490.6,4490.5,0.0018]
[1755270802952,12.35405008,4490.6,4490.5,0.0018]
[1755270803147,16.33405008,4490.6,4490.5,0.0018]
[1755270804886,16.33405008,4490.6,4490.5,1e-08]
[1755270805471,16.33405008,4490.6,4490.0,1e-08]
[1755270805472,5.77712189,4490.1,4490.0,1e-08]
[1755270805675,5.77712189,4490.1,4487.4,0.089256]
[1755270805676,2.22805765,4488.3,4487.4,0.089256]
[1755270805984,0.55,4488.7,4487.7,2.22831294]
[1755270805985,0.1112,4487.8,4487.7,2.22831294]
[1755270806291,3.979,4487.8,4487.0,0.4652]
[1755270806499,3.979,4487.8,4487.7,2.22831294]
[1755270806644,3.979,4487.8,4487.0,0.4652]
[1755270806848,0.1112,4487.7,4487.6,2.22835085]
[1755270807163,0.1112,4487.7,4487.0,0.1112]
[1755270807362,0.1112,4487.7,4485.4,2.22945127]
[1755270807363,0.55,4487.6,4485.8,2.22925223]
[1755270807677,2.77900831,4486.3,4486.2,0.669569]
[1755270807886,0.55,4485.4,4484.0,0.4662]
[1755270808064,0.55,4485.2,4484.0,0.4662]
[1755270808264,3.979,4485.1,4484.6,2.22985157]
[1755270808477,3.979,4485.1,4484.0,0.5774]
[1755270808658,3.979,4485.1,4484.1,2.23009523]
[1755270808659,0.1112,4484.7,4484.1,2.23009523]
[1755270808858,0.1112,4484.7,4484.6,2.22985327]
[1755270809045,3.979,4484.7,4484.4,0.1112]
[1755270809245,0.55,4484.6,4484.0,0.001]
[1755270809555,3.0,4485.5,4484.0,0.001]
[1755270809754,0.1112,4484.8,4484.2,0.1112]
[1755270809953,3.979,4484.7,4484.6,2.22985327]
[1755270810262,3.0,4485.5,4485.1,2.22959551]
[1755270810570,0.1112,4485.0,4484.9,2.22969341]
[1755270810971,0.55,4484.9,4484.0,0.001]
[1755270811182,3.98,4484.8,4484.0,0.001]
[1755270811395,3.98,4484.7,4484.0,0.001]
[1755270811547,3.98,4484.6,4484.0,0.001]
[1755270811756,3.98,4484.6,4484.0,0.4662]
[1755270812059,0.55,4485.4,4484.1,2.23010191]
[1755270812277,5.349,4485.6,4484.2,0.48750052]
[1755270812481,5.3482,4485.6,4485.5,2.22940586]
[1755270812650,5.3482,4485.6,4485.3,2.22948289]
[1755270812651,3.98,4485.7,4485.4,2.22945556]
[1755270812850,3.98,4485.7,4485.6,2.22935616]
[1755270813097,5.351,4487.5,4485.6,0.4652]
[1755270813386,3.979,4487.4,4485.6,3.18682093]
[1755270813684,3.979,4487.4,4487.3,2.22851157]
[1755270813889,3.979,4487.4,4485.7,3.78388209]
[1755270814189,3.979,4487.4,4485.8,2.22925676]
[1755270814190,4.689,4487.4,4485.8,2.22925676]
[1755270814686,3.979,4487.4,4485.8,2.22925676]
[1755270814849,0.55,4487.3,4486.0,2.22915737]
[1755270815052,0.55,4487.3,4486.9,2.22870302]
[1755270815453,0.55,4487.3,4485.9,2.22920707]
[1755270815783,0.55,4487.3,4486.1,2.22910768]
[1755270815984,0.55,4487.3,4486.9,2.22870279]
[1755270816169,0.55,4487.3,4487.0,2.22864954]
[1755270816558,5.351,4487.5,4486.0,0.30130892]
[1755270816884,3.979,4487.5,4486.5,2.22890894]
[1755270817085,3.979,4487.5,4486.3,3.0]
[1755270817086,3.979,4487.5,4487.4,2.22846191]
[1755270817391,3.979,4487.5,4486.3,3.0]
[1755270817392,5.352,4489.1,4486.7,2.22880959]
[1755270817594,0.6956,4489.0,4488.1,2.22807301]
[1755270817886,5.352,4489.1,4487.8,2.22826329]
[1755270818165,5.352,4489.1,4489.0,2.22766763]
[1755270818295,9.331,4489.1,4489.0,2.22766763]
[1755270818785,5.352,4489.1,4489.0,2.22766763]
[1755270819011,9.331,4489.1,4489.0,2.22766763]
[1755270820273,9.331,4489.1,4488.8,2.22772944]
[1755270820474,9.331,4489.1,4487.6,3.0]
[1755270820675,0.6956,4489.0,4488.6,2.2278186]
[1755270821111,0.1112,4488.8,4488.7,2.22781651]
[1755270821699,0.1112,4488.8,4488.6,2.22785979]
[1755270822012,9.331,4489.1,4487.2,2.22856124]
[1755270822013,5.1351,4488.7,4487.2,2.22856124]
[1755270822309,0.1112,4488.3,4488.1,2.2281112]
[1755270822516,3.978,4488.2,4487.7,0.1112]
[1755270822909,3.978,4488.2,4488.1,2.22811434]
[1755270823101,3.977,4488.2,4488.0,0.1112]
[1755270823298,3.977,4488.2,4488.1,2.22811434]
[1755270824288,0.1112,4488.6,4488.5,2.22791578]
[1755270824489,5.4632,4489.1,4489.0,2.22766763]
[1755270824695,9.4402,4489.1,4489.0,2.22766763]
[1755270824924,0.6956,4490.8,4489.0,0.4373]
[1755270825218,0.1112,4490.4,4490.3,2.22702269]
[1755270825396,5.2443,4490.4,4490.2,2.22707068]
[1755270825590,4.5487,4490.4,4490.2,2.22707068]
[1755270825800,1.61197,4490.3,4489.7,0.1112]
[1755270826304,0.1112,4489.8,4488.8,0.1112]
[1755270826494,3.976,4489.7,4489.2,2.22755723]
[1755270826812,0.1112,4489.4,4489.3,2.22747925]
[1755270826995,1.15047,4490.3,4489.5,2.22739143]
[1755270827194,0.1112,4489.7,4489.6,2.2273554]
[1755270827394,4.0862,4489.7,4489.5,2.22740956]
[1755270827616,4.0862,4489.7,4489.3,2.22747925]
[1755270827795,4.0862,4489.7,4488.8,0.1112]
[1755270828037,0.55,4489.6,4488.8,0.1112]
[1755270828326,0.1112,4489.2,4488.5,0.1112]
[1755270828622,3.975,4489.1,4488.9,2.22768508]
[1755270829023,3.975,4489.1,4488.5,2.33909903]
[1755270829242,3.975,4489.1,4488.5,0.1112]
[1755270829384,0.40862,4489.0,4488.3,2.22796971]
[1755270829585,3.975,4488.9,4488.8,2.22776306]
[1755270829821,3.975,4488.9,4488.6,2.22786614]
[1755270830017,2.68877764,4489.8,4487.9,0.66927]
[1755270830018,0.6956,4490.5,4488.8,0.4373]
[1755270830289,2.22706432,4490.3,4489.4,2.22746914]
[1755270830521,3.48557684,4490.3,4489.5,2.22740107]
[1755270830717,2.22712189,4490.1,4489.2,2.22756714]
[1755270830905,2.22712189,4490.1,4489.3,2.22751442]
[1755270831221,0.55,4490.2,4489.4,2.22746266]
[1755270831401,0.55,4490.2,4489.4,2.22746395]
[1755270831597,1.49781125,4490.2,4489.4,2.22746395]
[1755270831796,3.974,4490.1,4489.5,2.22737645]
[1755270831995,3.974,4490.1,4489.6,2.22734817]
[1755270832195,3.974,4490.1,4489.7,2.22731766]
[1755270832415,3.974,4490.1,4488.9,2.22771725]
[1755270832416,3.974,4490.1,4489.6,2.22733049]
[1755270832628,0.6956,4491.1,4488.7,0.3575]
[1755270832803,0.55,4490.9,4489.7,2.22732031]
[1755270833129,3.973,4491.0,4489.8,2.2272707]
[1755270833303,3.973,4491.0,4489.6,0.4373]
[1755270833503,3.973,4491.0,4489.7,2.22732031]
[1755270833705,3.973,4491.0,4489.7,2.49378107]
[1755270833900,3.973,4491.0,4490.8,2.22676709]
[1755270834104,1.1571,4490.9,4490.2,2.22704315]
[1755270834332,1.1571,4490.9,4489.6,3.0]
[1755270834535,1.1571,4490.9,4490.5,2.22687901]
[1755270834703,1.1571,4490.9,4490.5,2.2269137]
[1755270834900,1.1571,4490.9,4490.4,2.22696944]
[1755270835132,0.6956,4490.8,4490.4,2.22696944]
[1755270835426,0.4635,4490.9,4489.7,0.0222732]
[1755270835427,3.972,4490.7,4489.7,0.0222732]
[1755270835627,3.972,4490.7,4489.6,0.4373]
[1755270835628,3.972,4490.7,4490.6,2.22687391]
[1755270836726,0.002,4490.9,4490.7,2.22679274]
[1755270836923,3.972,4490.8,4490.7,2.22682432]
[1755270837917,0.002,4490.9,4490.8,2.22677473]
[1755270838244,1.7071,4490.8,4488.8,0.76275621]
[1755270838456,4.7071,4490.7,4488.3,0.4373]
[1755270838615,0.55,4490.5,4488.4,5.22796542]
[1755270838953,0.55,4490.5,4488.8,3.0]
[1755270839150,0.55,4490.5,4489.8,2.22726673]
[1755270839310,3.38401394,4490.6,4488.9,2.22771725]
[1755270839311,0.39340139,4490.4,4488.9,2.22771725]
[1755270839635,3.97,4490.3,4489.4,2.22746857]
[1755270839817,3.97,4490.2,4489.2,2.22752392]
[1755270840016,0.1112,4490.1,4489.5,0.1112]
[1755270840227,0.1112,4490.1,4490.0,2.22717149]
[1755270840398,1.1571,4490.1,4489.5,0.1112]
[1755270840599,0.55,4489.8,4485.8,2.22921643]
[1755270840800,3.55,4489.6,4486.8,0.4383]
[1755270841048,0.1112,4488.5,4487.5,0.1112]
[1755270841253,0.1112,4488.1,4487.3,0.669368]
[1755270841459,0.1112,4488.1,4487.6,2.22834949]
[1755270841605,0.1112,4488.1,4487.9,2.22820151]
[1755270841800,0.1112,4488.1,4487.8,2.22825911]
[1755270842146,0.1112,4488.1,4487.2,0.1112]
[1755270842326,3.969,4488.5,4488.0,2.22816399]
[1755270842663,4.7071,4488.4,4486.7,2.22876605]
[1755270842839,4.1571,4488.3,4486.9,2.2286626]
[1755270843047,4.1571,4488.3,4486.8,2.22975448]
[1755270843048,0.55,4488.0,4486.8,2.22975448]
[1755270843203,0.55,4487.5,4486.8,0.001]
[1755270843605,5.1261,4487.9,4486.8,0.001]
[1755270843606,3.969,4487.4,4486.8,0.001]
[1755270843836,1.1571,4487.9,4486.8,0.001]
[1755270844037,3.969,4487.8,4486.9,2.22871024]
[1755270844238,0.6956,4488.5,4487.9,2.22817263]
[1755270844449,0.55,4488.1,4487.0,2.22861856]
[1755270844648,2.77824409,4487.9,4487.0,2.22865763]
[1755270844819,2.77824409,4487.9,4486.8,0.001]
[1755270844820,3.969,4487.8,4486.8,0.001]
[1755270845351,3.969,4487.7,4486.9,2.22871024]